bitfinex/quotes_ETHUSD_20241130
["timestamp","ask_amount","ask_price","bid_price","bid_amount"]
[1732938189243,0.7755,3623.0,3622.5,2.76051]
[1732938189403,0.7755,3623.0,3622.6,2.76043]
[1732938191035,0.7755,3623.3,3623.1,2.76005]
[1732938191223,1.03255515,3623.7,3623.2,2.75998]
[1732938191540,0.7755,3623.7,3623.2,2.75993]
[1732938191748,0.7755,3623.7,3623.2,0.275993]
[1732938191907,0.7755,3623.7,3622.7,0.8293]
[1732938192249,0.7755,3623.7,3622.4,2.76053]
[1732938192250,3.53515,3623.7,3622.4,0.8293]
[1732938192432,2.75981,3623.5,3622.8,2.76023]
[1732938192603,2.75984,3623.4,3622.8,2.76023]
[1732938192804,0.7755,3623.3,3622.4,2.76058]
[1732938192999,0.7755,3623.3,3622.0,0.8293]
[1732938193000,0.7755,3623.1,3622.0,0.8293]
[1732938193235,2.76029,3622.8,3622.2,2.76074]
[1732938193898,2.76014,3623.0,3622.2,2.76074]
[1732938194100,0.80746906,3622.9,3622.2,2.76074]
[1732938194449,0.55,3622.9,3622.3,2.76061]
[1732938194629,2.76042,3622.7,3622.1,2.76082]
[1732938194830,2.76042,3622.7,3622.1,3.395931]
[1732938195246,0.25765668,3622.6,3622.2,2.76075]
[1732938195432,0.25765668,3622.7,3622.2,2.76075]
[1732938195638,0.25765668,3622.7,3622.2,2.76069]
[1732938196159,0.25765668,3622.6,3622.2,2.76069]
[1732938196356,2.76037,3622.8,3622.2,2.76069]
[1732938196522,3.01827182,3622.7,3622.1,2.76082]
[1732938196721,0.25788182,3622.6,3622.1,2.76082]
[1732938196917,0.25788342,3622.5,3622.2,2.76073]
[1732938197118,0.41226666,3622.8,3622.3,2.76067]
[1732938197323,0.41226666,3622.8,3622.2,0.635085]
[1732938197324,0.25804201,3622.7,3622.6,2.7604]
[1732938197523,0.41286722,3623.1,3622.6,3.5897]
[1732938197725,1.20557002,3623.4,3622.6,3.5897]
[1732938197726,0.25800505,3623.0,3622.6,3.5897]
[1732938197953,0.25800505,3622.9,3622.6,2.7604]
[1732938198267,1.03363696,3622.8,3622.4,2.76058]
[1732938198422,0.25813696,3622.7,3622.4,3.3762205]
[1732938198790,0.7755,3622.8,3622.4,3.3762205]
[1732938198965,0.25814238,3622.7,3622.5,2.76051]
[1732938199167,1.18836722,3623.1,3622.6,2.76044]
[1732938199319,0.25815682,3623.0,3622.6,2.76044]
[1732938199522,0.7755,3623.1,3622.8,2.76025]
[1732938199755,0.25814543,3623.0,3622.8,2.76025]
[1732938200053,0.7755,3623.1,3622.8,2.76025]
[1732938200243,0.7755,3623.1,3622.6,2.76044]
[1732938200244,0.25816166,3623.0,3622.6,2.76044]
[1732938200451,0.25816166,3622.9,3622.4,0.6156405]
[1732938200626,1.18836722,3623.1,3622.6,2.76042]
[1732938200822,0.7755,3623.1,3622.5,2.76052]
[1732938201065,0.25817097,3623.0,3622.6,2.76039]
[1732938201265,0.25817097,3622.9,3622.6,2.76039]
[1732938201516,0.25817097,3622.8,3622.4,2.76053]
[1732938201658,0.25817097,3622.7,3622.2,2.7607]
[1732938201970,0.67124453,3622.6,3622.2,2.7607]
[1732938202175,0.25817097,3622.5,3622.2,2.7607]
[1732938202360,0.25817097,3622.4,3622.2,2.7607]
[1732938202556,2.7603,3622.8,3622.2,2.7607]
[1732938202865,0.67153923,3622.7,3622.3,2.76064]
[1732938203056,0.25828432,3622.6,3622.3,2.76064]
[1732938203261,0.25828432,3622.5,3622.3,2.76064]
[1732938203470,3.53558,3623.1,3622.3,3.395714]
[1732938203698,0.67175756,3623.0,3622.5,2.76047]
[1732938203899,0.67175756,3622.9,3622.8,2.76029]
[1732938204079,0.25836829,3622.9,3622.8,2.76029]
[1732938204479,0.2583983,3622.9,3622.8,2.76029]
[1732938206261,0.2583983,3622.9,3622.8,3.395292]
[1732938206860,0.7755,3623.4,3622.9,2.76021]
[1732938207197,0.67181681,3623.3,3623.1,2.76006]
[1732938207408,0.7627,3623.7,3623.1,2.76006]
[1732938207622,0.67168465,3623.6,3623.1,2.76006]
[1732938207779,0.67168465,3623.5,3623.3,2.75983]
[1732938207986,0.25834357,3623.4,3623.3,2.75983]
[1732938209315,0.25834357,3623.4,3623.2,2.75997]
[1732938209618,0.25834357,3623.3,3623.2,2.75997]
[1732938209819,0.4133526,3623.7,3623.2,3.311979]
[1732938210032,0.2582416,3623.6,3623.4,2.75982]
[1732938210316,0.4133526,3624.0,3623.5,2.75976]
[1732938210520,0.67152271,3623.9,3623.5,2.75976]
[1732938210683,0.25817011,3623.8,3623.4,2.75981]
[1732938210887,3.1727826,3624.0,3623.4,2.75981]
[1732938210888,0.25817011,3623.7,3623.4,2.75981]
[1732938211086,0.25817011,3623.6,3623.4,2.75981]
[1732938211298,0.4133526,3623.9,3623.4,2.75981]
[1732938211620,0.25812631,3623.8,3623.5,2.75974]
[1732938211944,0.25812631,3623.7,3623.5,2.75974]
[1732938212087,0.25812631,3623.6,3623.5,2.75974]
[1732938212287,3.1724321,3624.0,3623.5,2.75974]
[1732938212487,0.2580836,3623.9,3623.5,2.75974]
[1732938212726,0.2580836,3623.8,3623.5,2.75974]
[1732938212907,0.2580836,3623.7,3623.5,2.75969]
[1732938213235,0.55,3624.0,3623.1,0.7629]
[1732938213525,0.25800369,3623.9,3623.4,2.75979]
[1732938213847,0.25800369,3623.8,3623.4,2.75979]
[1732938214131,0.25800369,3623.7,3623.4,2.75979]
[1732938214429,2.75939,3624.0,3623.4,2.75979]
[1732938214597,0.25796365,3623.9,3623.5,2.7597]
[1732938214933,0.25796365,3623.8,3623.5,2.7597]
[1732938215290,3.52204,3624.1,3623.5,2.7597]
[1732938215593,0.25788152,3624.0,3623.5,2.7597]
[1732938215791,0.25788152,3623.9,3623.4,2.7598]
[1732938216014,0.25788152,3623.8,3623.5,2.75975]
[1732938216219,0.2578412,3623.7,3623.5,2.75975]
[1732938216389,2.75943,3624.0,3623.5,2.75975]
[1732938216607,0.25785513,3623.9,3623.5,2.75975]
[1732938216793,0.25785513,3623.8,3623.5,2.75975]
[1732938216993,2.75943,3624.0,3623.5,2.75975]
[1732938217194,0.25783423,3623.9,3623.5,2.75975]
[1732938217396,0.25783423,3623.8,3623.5,2.75975]
[1732938217596,3.522,3624.1,3623.5,2.75975]
[1732938217796,0.25782671,3624.0,3623.5,2.75975]
[1732938218107,0.25782671,3623.9,3623.5,2.75975]
[1732938218304,0.25782671,3623.8,3623.5,2.75975]
[1732938218631,0.25780239,3624.0,3623.5,2.75975]
[1732938218843,0.25780239,3623.9,3623.5,2.75975]
[1732938219034,0.25780239,3623.8,3623.5,2.75975]
[1732938219334,0.25780239,3624.0,3623.5,2.75975]
[1732938219535,0.25780239,3623.9,3623.5,2.75975]
[1732938219742,0.25780239,3623.8,3623.5,2.75975]
[1732938220034,3.01718755,3624.0,3623.5,2.75975]
[1732938220283,0.25777755,3623.9,3623.5,2.75975]
[1732938220573,0.41245117,3624.2,3623.9,2.75939]
[1732938220734,0.25780441,3624.1,3624.0,2.75933]
[1732938220928,0.25780441,3624.4,3624.1,2.75925]
[1732938221127,1.17518706,3624.7,3624.1,2.75925]
[1732938221128,0.25773091,3624.6,3624.1,2.75925]
[1732938221330,0.25773091,3624.6,3623.8,2.75949]
[1732938221331,0.25773091,3624.5,3623.8,2.75949]
[1732938221527,3.01677215,3624.5,3623.9,2.75941]
[1732938221723,0.25773215,3624.4,3623.9,2.75941]
[1732938221930,0.25773215,3624.3,3623.9,2.75941]
[1732938222275,3.01697215,3624.2,3623.7,3.5225]
[1732938222440,0.7627,3624.2,3623.4,3.52273]
[1732938222646,0.25765885,3624.1,3623.7,2.75956]
[1732938222970,2.75902,3624.5,3623.9,2.7594]
[1732938223137,2.75888,3624.7,3624.0,3.52227]
[1732938223337,0.25763275,3624.6,3624.0,3.52227]
[1732938223916,0.25763275,3624.6,3624.2,2.75917]
[1732938224169,0.25763275,3624.8,3624.3,2.75909]
[1732938224336,0.25763275,3624.8,3624.4,2.75907]
[1732938224541,1.867047,3625.2,3624.6,0.7629]
[1732938224740,1.104347,3625.2,3624.8,2.75876]
[1732938225244,0.25756857,3625.3,3624.8,2.75876]
[1732938225443,0.25756857,3625.3,3624.9,2.75867]
[1732938225965,0.25756857,3625.4,3624.9,2.75867]
[1732938226438,3.01590857,3625.4,3624.7,2.75879]
[1732938226639,2.75857,3625.1,3624.6,0.7629]
[1732938226839,2.75855,3625.1,3624.5,2.759]
[1732938227066,3.54139,3624.9,3624.4,2.75907]
[1732938227230,3.54139,3624.9,3624.3,0.8283]
[1732938227432,0.7827,3624.9,3624.3,0.8283]
[1732938227671,2.75867,3625.0,3624.5,2.75898]
[1732938228366,2.75854,3625.1,3624.5,2.75895]
[1732938228773,2.75854,3625.1,3623.6,0.8283]
[1732938228774,2.75923,3624.2,3623.6,0.8283]
[1732938228947,3.30902,3624.5,3623.7,2.75959]
[1732938229276,3.30902,3624.5,3623.6,0.8283]
[1732938229277,3.30905,3624.5,3623.8,2.75947]
[1732938229939,0.25739622,3624.4,3623.3,3.58814]
[1732938230138,0.7827,3624.0,3623.3,0.8283]
[1732938230373,2.75952,3623.9,3623.3,0.8283]
[1732938230872,2.75952,3623.9,3623.3,3.5882]
[1732938231833,2.75968,3623.6,3622.9,2.7602]
[1732938232075,2.75976,3623.5,3622.9,3.395083]
[1732938232465,0.55,3623.9,3622.9,0.634883]
[1732938232633,2.75964,3623.7,3622.7,0.8283]
[1732938232834,0.25751582,3623.8,3623.3,2.75988]
[1732938233148,1.346515,3624.3,3622.9,0.8283]
[1732938233348,3.0169244,3624.2,3623.6,2.75966]
[1732938233549,0.2576544,3624.1,3623.6,2.75966]
[1732938233900,0.2576544,3624.0,3623.6,2.75966]
[1732938234182,0.2576544,3624.0,3623.3,2.75986]
[1732938234385,0.2576544,3624.0,3623.3,3.035846]
[1732938234386,3.0170444,3624.0,3623.3,3.035846]
[1732938234533,3.0171644,3623.9,3623.1,2.76005]
[1732938234737,2.75931,3624.1,3622.9,0.8283]
[1732938234937,0.25773523,3624.0,3623.4,2.75978]
[1732938235192,0.25773523,3623.9,3623.4,2.75978]
[1732938235387,2.75943,3624.0,3623.2,2.75997]
[1732938235556,3.017287,3623.9,3623.3,2.7599]
[1732938235749,2.75934,3624.1,3623.4,2.75976]
[1732938235952,0.25779413,3623.8,3623.3,2.75991]
[1732938236164,0.25779413,3623.8,3623.2,3.394799]
[1732938236165,2.75934,3624.1,3623.4,2.75979]
[1732938236339,0.25784277,3624.0,3623.4,2.75979]
[1732938236541,2.75946,3623.9,3623.2,3.394799]
[1732938236738,3.01738277,3623.8,3623.3,3.3753909]
[1732938236967,2.75954,3623.8,3623.3,3.3753909]
[1732938237475,2.75944,3624.0,3623.3,3.3753909]
[1732938237658,0.2578401,3623.9,3623.3,2.7599]
[1732938237873,0.2578401,3623.8,3623.3,2.7599]
[1732938238073,2.75947,3623.9,3623.3,2.7599]
[1732938238283,0.2578401,3623.8,3623.3,2.7599]
[1732938238652,2.75943,3624.0,3623.3,2.75987]
[1732938238857,0.25783517,3623.9,3623.3,0.551991]
[1732938239114,0.25786257,3624.1,3623.7,2.75955]
[1732938239299,0.7827,3624.3,3623.8,2.75948]
[1732938239500,0.7827,3624.3,3623.7,2.75955]
[1732938239802,2.75901,3624.5,3624.0,2.75937]
[1732938240031,0.25789082,3624.4,3623.8,2.75947]
[1732938240230,0.805,3624.6,3623.6,0.8065]
[1732938240231,0.805,3624.6,3623.9,0.632552]
[1732938240430,0.25788234,3624.6,3624.2,2.75917]
[1732938240601,3.01675562,3624.7,3624.0,2.75932]
[1732938240802,0.25788758,3624.6,3624.0,2.75932]
[1732938241016,2.75887,3624.7,3624.0,2.75932]
[1732938241017,0.25789149,3624.5,3624.0,2.75932]
[1732938241317,0.25788164,3624.6,3624.0,2.75932]
[1732938241511,2.75887,3624.7,3624.0,2.75932]
[1732938241716,0.25787123,3624.6,3624.0,2.75932]
[1732938241919,2.75887,3624.7,3624.0,3.391852]
[1732938242121,0.25784187,3624.6,3624.0,3.391852]
[1732938242320,0.25782107,3624.5,3624.0,0.632532]
[1732938242519,0.25781593,3624.7,3623.8,2.75953]
[1732938242733,0.25781593,3624.6,3624.1,2.75925]
[1732938242931,0.25781276,3624.7,3624.1,2.75925]
[1732938243109,0.25780265,3624.6,3624.1,2.75925]
[1732938243304,2.75883,3624.8,3624.2,0.55187]
[1732938243649,2.75892,3624.6,3624.2,0.55187]
[1732938243807,2.75892,3624.6,3624.1,2.75925]
[1732938244007,0.55,3624.8,3623.6,2.75963]
[1732938244008,0.55,3624.5,3623.6,2.75963]
[1732938244211,0.2577964,3624.4,3623.8,2.75948]
[1732938244512,0.257804,3624.4,3624.2,2.75921]
[1732938244712,0.805,3624.7,3624.3,2.7591]
[1732938244911,0.25779805,3624.6,3624.3,2.7591]
[1732938245345,0.805,3624.7,3624.3,2.7591]
[1732938245856,0.55,3625.0,3624.6,2.75891]
[1732938246176,0.25780248,3624.9,3624.6,3.034801]
[1732938246327,3.31797986,3625.4,3624.8,2.75877]
[1732938246679,0.25780997,3625.3,3624.8,2.75877]
[1732938246829,0.25780997,3625.2,3624.8,2.75877]
[1732938247027,1.21750712,3625.5,3624.9,2.75865]
[1732938247267,3.01611968,3625.4,3624.8,0.5793571]
[1732938247471,0.25775968,3625.3,3624.8,0.5793571]
[1732938247638,0.25775968,3625.2,3624.8,3.3381171]
[1732938247965,0.25775968,3625.4,3624.9,2.75866]
[1732938248141,3.56324,3625.5,3624.9,2.75866]
[1732938248142,0.25775968,3625.3,3624.9,2.75866]
[1732938248471,0.25775968,3625.4,3625.0,2.75854]
[1732938248678,0.805,3625.5,3625.2,2.75843]
[1732938248876,0.25764655,3625.7,3625.2,2.75843]
[1732938249177,0.25766609,3625.7,3625.2,2.75845]
[1732938249371,0.7897,3625.8,3625.4,2.7583]
[1732938249674,1.04736609,3625.8,3625.4,2.7583]
[1732938249964,1.04736609,3625.8,3625.2,2.75845]
[1732938249965,0.25766609,3625.7,3625.0,0.33378971]
[1732938250169,0.7897,3625.8,3625.5,2.75822]
[1732938250588,0.25766609,3626.0,3625.5,2.75822]
[1732938250789,3.5475,3626.1,3625.5,2.75822]
[1732938250790,0.7897,3626.1,3625.5,2.75822]
[1732938251145,0.80980131,3626.2,3625.7,2.75808]
[1732938251895,0.8096644,3626.2,3625.7,2.75808]
[1732938252393,0.55232509,3626.2,3625.7,2.75808]
[1732938252759,0.80955551,3626.2,3625.7,2.75808]
[1732938252963,0.55232509,3626.2,3625.7,2.75808]
[1732938253396,0.55232509,3626.2,3625.5,2.75822]
[1732938253600,2.75763,3626.3,3625.5,3.113632]
[1732938253889,0.55,3626.2,3625.7,2.75806]
[1732938254091,0.55,3626.3,3625.8,2.75795]
[1732938254405,3.54704,3626.7,3626.1,2.75777]
[1732938254547,3.54704,3626.7,3626.1,2.75771]
[1732938254982,3.54704,3626.7,3625.6,0.7959]
[1732938254983,3.54707,3626.7,3625.6,0.7959]
[1732938255186,3.54707,3626.7,3626.1,2.75778]
[1732938255368,3.54707,3626.7,3626.1,3.309356]
[1732938255663,0.7897,3626.7,3626.1,3.309356]
[1732938255869,3.54704,3626.7,3626.1,3.309356]
[1732938256468,2.75759,3626.4,3626.1,0.551576]
[1732938256792,2.75742,3626.6,3626.1,0.551576]
[1732938256997,0.7897,3626.7,3626.1,0.551576]
[1732938257195,0.7897,3626.7,3625.6,0.7959]
[1732938257504,0.7897,3626.7,3626.2,2.75765]
[1732938257861,3.54709,3626.7,3626.0,2.75783]
[1732938258206,3.54709,3626.7,3626.1,2.75777]
[1732938259062,2.75741,3626.6,3626.0,2.75784]
[1732938259421,2.75753,3626.5,3626.1,0.551576]
[1732938259567,2.75742,3626.6,3626.0,2.75785]
[1732938260611,2.75752,3626.5,3625.8,2.758]
[1732938260810,2.75752,3626.5,3625.9,2.75793]
[1732938261366,2.75785,3626.1,3625.5,0.355412]
[1732938261566,2.75785,3626.1,3625.6,2.75816]
[1732938261808,2.75785,3626.1,3625.5,3.113642]
[1732938261976,3.53226,3626.0,3625.5,2.75823]
[1732938262366,0.7744,3626.0,3625.3,2.75836]
[1732938262708,0.7744,3626.0,3625.5,2.7582]
[1732938263292,3.53226,3626.0,3625.5,2.7582]
[1732938263560,0.7744,3626.0,3625.5,0.551656]
[1732938263766,0.7744,3626.0,3625.5,2.75819]
[1732938264381,0.7744,3626.0,3625.6,2.75815]
[1732938264710,0.7744,3626.4,3625.9,2.75787]
[1732938265014,2.75741,3626.6,3626.0,2.75783]
[1732938265177,2.75741,3626.6,3626.0,3.033613]
[1732938265726,0.55,3626.6,3626.0,3.033613]
[1732938266023,3.30744,3626.6,3626.0,3.033613]
[1732938267285,2.75749,3626.5,3626.0,3.033613]
[1732938267488,2.75749,3626.5,3626.0,0.275783]
[1732938268118,2.75749,3626.5,3626.0,3.033623]
[1732938269123,3.53177,3626.7,3626.1,0.5791633]
[1732938269697,3.01439877,3626.6,3626.1,0.5791633]
[1732938269902,2.75743,3626.6,3626.1,0.5791633]
[1732938270830,2.75754,3626.5,3626.1,0.5791633]
[1732938271039,2.7577,3626.3,3625.6,3.53583]
[1732938271189,2.7577,3626.3,3625.6,3.53586]
[1732938271389,2.7577,3626.3,3625.8,2.758]
[1732938271586,2.75771,3626.2,3625.6,3.53586]
[1732938272011,2.75756,3626.4,3625.7,2.75808]
[1732938272223,3.01486899,3626.3,3625.7,3.111658]
[1732938272399,2.75765,3626.3,3625.7,3.111658]
[1732938272831,0.25723826,3626.2,3625.7,3.111658]
[1732938273033,2.75765,3626.3,3625.7,3.111658]
[1732938273197,0.2573856,3626.2,3625.7,3.111658]
[1732938273402,2.75748,3626.5,3625.8,3.4227588]
[1732938273716,0.25740068,3626.4,3625.9,2.75792]
[1732938273900,0.25740068,3626.3,3625.9,2.75792]
[1732938274101,0.25740573,3626.4,3626.0,2.75784]
[1732938274543,2.75748,3626.5,3626.0,2.75784]
[1732938274697,3.53174,3626.7,3626.0,2.75784]
[1732938274698,0.25756224,3626.4,3626.0,3.37590488]
[1732938274903,0.7744,3626.7,3626.2,2.75765]
[1732938275104,0.25757328,3626.5,3626.2,0.7925]
[1732938275543,0.25768556,3626.4,3626.2,0.7925]
[1732938275747,0.25768556,3626.3,3626.2,0.7925]
[1732938277253,0.25768556,3626.3,3626.0,0.61806488]
[1732938277543,0.25768556,3626.2,3625.7,2.75806]
[1732938277750,3.52165,3626.3,3626.0,2.75784]
[1732938277751,0.25786578,3626.1,3626.0,2.75784]
[1732938279635,0.25786578,3626.1,3625.8,3.388838]
[1732938279841,0.25786578,3626.0,3625.9,2.75793]
[1732938280212,0.25786578,3626.0,3625.9,6.45243]
[1732938280432,0.764,3627.2,3626.4,0.7925]
[1732938280433,0.4297763,3627.1,3626.4,0.7925]
[1732938280677,0.67114621,3627.0,3626.9,2.75717]
[1732938280975,0.67114621,3627.0,3626.5,0.6825845]
[1732938280976,0.67114621,3627.0,3626.7,2.75732]
[1732938281157,0.67114621,3626.9,3626.7,2.75732]
[1732938281328,0.67111211,3626.8,3626.7,2.75732]
[1732938281758,0.25812831,3626.8,3626.5,3.412473]
[1732938281933,0.41299207,3627.1,3626.5,3.412473]
[1732938282127,3.42823444,3627.0,3626.5,0.655013]
[1732938282371,3.77936714,3626.9,3626.1,2.75773]
[1732938282554,3.42823658,3626.8,3626.1,2.75773]
[1732938282758,3.52124,3626.9,3625.9,2.75792]
[1732938282759,2.75745,3626.6,3625.9,2.75792]
[1732938283074,3.42842658,3626.5,3625.9,2.75792]
[1732938283244,0.67094658,3626.4,3625.9,2.75792]
[1732938283447,0.25812714,3626.3,3625.9,2.75792]
[1732938283653,0.25812714,3626.2,3625.9,3.4518548]
[1732938283859,0.25812714,3626.1,3625.9,0.6939348]
[1732938284171,0.41277889,3626.6,3626.0,2.7578]
[1732938284376,0.2580045,3626.5,3626.2,2.75769]
[1732938284552,0.25791184,3626.4,3626.2,2.75767]
[1732938284877,0.96265326,3626.8,3626.2,2.75767]
[1732938285042,0.41265326,3626.7,3626.2,2.75767]
[1732938285243,0.25789915,3626.6,3626.1,2.75772]
[1732938285449,0.25789915,3626.5,3626.1,2.75772]
[1732938285655,0.25789915,3626.4,3626.1,3.309289]
[1732938285858,0.41258716,3626.6,3626.1,0.551569]
[1732938286043,0.25788492,3626.5,3626.1,0.551569]
[1732938286372,0.25788492,3626.4,3626.1,3.309279]
[1732938286529,3.3073,3626.8,3626.1,3.309279]
[1732938286530,0.4126069,3626.7,3626.1,2.75771]
[1732938286729,0.25787785,3626.6,3626.1,2.75771]
[1732938286929,0.25787785,3626.5,3626.1,2.75771]
[1732938287161,0.25787785,3626.4,3626.1,2.75771]
[1732938287368,0.41261993,3626.7,3626.1,2.75771]
[1732938287568,0.25789013,3626.6,3626.3,2.75757]
[1732938287738,0.25789324,3626.5,3626.3,2.75757]
[1732938288069,0.764,3626.9,3626.3,2.75757]
[1732938288290,0.25786241,3626.8,3626.3,2.75757]
[1732938288436,0.25787386,3626.7,3626.3,3.388172]
[1732938288775,0.25787386,3626.6,3626.3,3.388172]
[1732938289111,0.25787386,3626.5,3626.3,3.388172]
[1732938289278,0.41259096,3626.8,3626.3,3.388172]
[1732938289443,0.25783933,3626.7,3626.3,3.388172]
[1732938289656,0.41259096,3626.8,3626.3,3.388172]
[1732938289657,0.25783933,3626.6,3626.4,0.6936622]
[1732938289845,0.764,3626.9,3626.4,0.6936622]
[1732938290177,0.25785912,3626.8,3626.4,3.4511822]
[1732938290334,0.25785912,3626.7,3626.4,3.4511822]
[1732938290536,0.25785912,3626.6,3626.4,3.4511822]
[1732938290871,0.41249348,3627.0,3626.5,3.45736522]
[1732938291043,0.67033853,3626.9,3626.6,2.75737]
[1732938291252,3.58968,3627.3,3626.6,2.75737]
[1732938291253,0.25782251,3626.8,3626.6,2.75737]
[1732938291609,0.41251602,3627.1,3626.6,2.75737]
[1732938291772,0.25781554,3627.0,3626.7,2.7573]
[1732938291981,0.55,3627.2,3626.7,2.7573]
[1732938292145,0.25780814,3626.9,3626.5,0.69994522]
[1732938292329,0.25780814,3626.9,3626.6,0.34574652]
[1732938292534,0.25779726,3626.8,3626.6,0.34574652]
[1732938292773,0.41247316,3627.1,3626.6,0.34574652]
[1732938292968,0.25781177,3627.0,3626.5,2.75742]
[1732938293176,0.25781177,3626.9,3626.5,2.75742]
[1732938293340,0.25781177,3626.9,3626.4,2.75752]
[1732938293341,0.25781177,3626.8,3626.2,3.54838]
[1732938293545,0.25780122,3626.7,3626.2,3.54838]
[1732938293777,2.75722,3626.9,3626.3,2.75762]
[1732938293951,0.2577968,3626.8,3626.4,2.75755]
[1732938294144,0.2577968,3626.7,3626.5,2.75741]
[1732938294348,0.41247316,3627.0,3626.4,3.388144]
[1732938294691,0.25784976,3626.9,3626.7,2.75732]
[1732938294977,0.55,3627.2,3626.5,2.75745]
[1732938295272,0.25786576,3627.1,3626.6,2.75733]
[1732938295508,0.25786576,3627.0,3626.6,2.75733]
[1732938295716,0.25782753,3627.0,3626.6,3.3718674]
[1732938295868,0.25782753,3626.9,3626.8,2.75724]
[1732938296202,2.96221107,3627.3,3626.8,2.75724]
[1732938296564,0.25782288,3627.2,3626.8,2.75724]
[1732938296766,0.25782288,3627.1,3627.0,2.75709]
[1732938296967,0.55,3627.4,3627.0,2.75709]
[1732938297209,0.25782477,3627.3,3627.0,2.75709]
[1732938297368,0.55,3627.4,3627.0,2.75709]
[1732938297570,0.25776466,3627.3,3627.1,2.75697]
[1732938297765,5.29849449,3627.7,3627.1,2.75697]
[1732938298068,0.25777181,3627.6,3627.1,2.75697]
[1732938298316,0.25777181,3627.5,3627.1,2.75697]
[1732938298604,0.25777181,3627.4,3627.1,2.75697]
[1732938298813,2.12941107,3627.3,3626.9,2.75713]
[1732938299340,2.12941107,3627.3,3626.8,2.7572]
[1732938299965,2.12941107,3627.3,3626.8,2.75721]
[1732938300169,0.25764499,3627.2,3626.8,2.75721]
[1732938300369,2.12941107,3627.3,3626.8,3.44918674]
[1732938300782,0.25765144,3627.2,3626.8,0.69197674]
[1732938300981,0.25763744,3627.1,3626.7,3.54801]
[1732938301208,4.88631107,3627.3,3626.7,3.54801]
[1732938301413,4.88631107,3627.3,3626.5,2.75744]
[1732938301414,3.58983,3627.1,3626.5,2.75744]
[1732938301729,0.25762944,3627.0,3626.6,2.75739]
[1732938301872,0.8328,3627.1,3626.6,2.75739]
[1732938302272,3.58983,3627.1,3626.4,2.75749]
[1732938302498,3.58983,3627.1,3626.5,2.75746]
[1732938303431,2.75703,3627.1,3626.5,2.75746]
[1732938303586,2.96221107,3627.3,3626.8,2.75724]
[1732938303925,0.25768013,3627.2,3626.5,0.7907]
[1732938304228,0.25774374,3627.5,3627.4,2.75678]
[1732938304394,3.58923,3627.9,3627.4,2.75678]
[1732938304595,0.25772733,3627.8,3627.4,2.75678]
[1732938304812,0.25772733,3627.7,3627.4,2.75678]
[1732938304999,0.25772733,3627.6,3627.4,2.75678]
[1732938305216,0.8328,3627.9,3627.4,2.75678]
[1732938305409,0.25766122,3627.8,3627.4,2.75678]
[1732938305586,0.25766122,3627.7,3627.5,2.75671]
[1732938305790,0.8328,3627.9,3627.5,2.75671]
[1732938306134,0.25767057,3627.8,3627.2,0.7907]
[1732938306337,0.25767057,3627.7,3626.8,2.75721]
[1732938306482,1.09047057,3627.6,3626.8,2.75721]
[1732938306683,0.25767057,3627.5,3626.7,0.7907]
[1732938306912,0.25767057,3627.4,3627.1,2.757]
[1732938307101,0.8328,3627.6,3627.1,2.757]
[1732938307298,0.25763392,3627.5,3627.1,2.757]
[1732938307501,0.25763392,3627.4,3627.1,2.757]
[1732938307690,0.25769104,3627.5,3627.1,2.757]
[1732938307901,0.8328,3627.6,3627.1,2.757]
[1732938308102,0.25770406,3627.5,3627.2,2.75691]
[1732938308345,0.41234493,3627.8,3627.2,3.308271]
[1732938308515,0.2577203,3627.7,3627.3,2.75681]
[1732938308843,5.68353107,3627.9,3627.3,2.75681]
[1732938309048,0.25772863,3627.8,3627.3,2.75681]
[1732938309202,5.68353107,3627.9,3627.3,2.75681]
[1732938309203,0.25772863,3627.7,3627.3,2.75681]
[1732938309545,0.25772863,3627.6,3627.3,2.75681]
[1732938309842,3.55412,3627.9,3627.4,2.75679]
[1732938310148,0.25771687,3627.8,3627.4,2.75679]
[1732938310355,0.25771687,3627.7,3627.4,2.75679]
[1732938310551,0.7977,3628.2,3627.6,2.7566]
[1732938310755,0.25774176,3628.1,3627.6,2.7566]
[1732938310943,0.25774176,3628.0,3627.7,2.75651]
[1732938311109,0.25774176,3627.9,3627.7,2.75651]
[1732938311317,0.7977,3628.2,3627.6,2.7566]
[1732938311318,0.25769886,3628.1,3627.8,2.75643]
[1732938311619,0.7977,3628.2,3627.8,2.75643]
[1732938311822,0.2576301,3628.1,3627.8,2.75643]
[1732938312025,0.2576301,3628.0,3627.6,2.7566]
[1732938312209,2.75633,3628.1,3627.5,2.75671]
[1732938312410,0.25758424,3628.0,3627.6,2.75663]
[1732938312642,2.75633,3628.1,3627.6,2.75663]
[1732938312851,0.25753443,3628.0,3627.4,2.75678]
[1732938313046,0.25753443,3627.9,3627.4,2.75678]
[1732938313223,0.25753443,3627.9,3627.2,2.75693]
[1732938313224,2.75641,3627.9,3627.2,2.75693]
[1732938313411,1.05523293,3627.8,3627.3,2.75684]
[1732938313607,0.25753293,3627.7,3627.4,2.75678]
[1732938313824,2.75635,3628.0,3627.5,2.75671]
[1732938314054,0.7977,3628.1,3627.5,2.75671]
[1732938314349,0.25751156,3628.0,3627.6,2.75663]
[1732938314553,0.25751156,3627.9,3627.7,2.75656]
[1732938314736,0.25751156,3628.0,3627.7,2.75656]
[1732938314938,0.7977,3628.1,3627.7,2.75656]
[1732938315115,0.25755311,3628.0,3627.7,2.75656]
[1732938315312,2.75617,3628.3,3627.7,2.75656]
[1732938315510,0.25754706,3628.2,3627.8,2.75647]
[1732938315754,0.25754706,3628.2,3627.5,3.58728]
[1732938315755,0.25742579,3628.1,3627.6,2.75658]
[1732938316127,2.75617,3628.3,3627.6,2.75658]
[1732938316466,2.75701,3627.2,3626.6,2.75734]
[1732938316660,0.7977,3627.4,3626.6,2.75734]
[1732938316814,0.25736572,3627.3,3626.8,2.75722]
[1732938317010,0.7977,3627.4,3626.4,0.8306]
[1732938317011,0.25736572,3627.2,3626.9,2.75713]
[1732938317215,3.55449,3627.4,3626.9,2.75713]